[Event "*** SCC Grand Prix: Titled Tuesday Blitz"]
[Site "Chess.com"]
[Date "2020.06.02"]
[Round "2"]
[White "MF1966Idrisov"]
[Black "HouseOfDurin"]
[Result "1-0"]
[WhiteElo "2359"]
[BlackElo "1996"]
[TimeControl "180+1"]
[EndTime "10:18:16 PDT"]
[Termination "MF1966Idrisov won by resignation"]

1. Nf3 {[%clk 0:03:00.9]} 1... c5 {[%clk 0:02:59.9]} 2. b3 {[%clk 0:03:00.8]}
2... Nc6 {[%clk 0:03:00]} 3. Bb2 {[%clk 0:02:59.5]} 3... d6 {[%clk 0:03:00.5]}
4. d4 {[%clk 0:02:59.2]} 4... cxd4 {[%clk 0:02:59.2]} 5. Nxd4 {[%clk 0:02:57.6]}
5... Nf6 {[%clk 0:02:59.3]} 6. g3 {[%clk 0:02:57.1]} 6... g6 {[%clk 0:02:58.4]}
7. Bg2 {[%clk 0:02:57.1]} 7... Bd7 {[%clk 0:02:58.1]} 8. O-O {[%clk 0:02:56]}
8... Bg7 {[%clk 0:02:57.2]} 9. c4 {[%clk 0:02:56.1]} 9... O-O {[%clk 0:02:56.1]}
10. Nc3 {[%clk 0:02:56]} 10... Nxd4 {[%clk 0:02:40.3]} 11. Qxd4 {[%clk
0:02:55.4]} 11... Bc6 {[%clk 0:02:40.9]} 12. Nd5 {[%clk 0:02:53.9]} 12... Nh5
{[%clk 0:02:19.1]} 13. Qd2 {[%clk 0:02:53.3]} 13... Bxb2 {[%clk 0:02:05.6]} 14.
Qxb2 {[%clk 0:02:52.4]} 14... e6 {[%clk 0:02:06]} 15. Ne3 {[%clk 0:02:46.8]}
15... Bxg2 {[%clk 0:02:03.8]} 16. Kxg2 {[%clk 0:02:46.6]} 16... Qg5 {[%clk
0:01:47.9]} 17. Kh1 {[%clk 0:02:40.5]} 17... Rfd8 {[%clk 0:01:38.6]} 18. Rad1
{[%clk 0:02:38.7]} 18... Rd7 {[%clk 0:01:31.5]} 19. Rd3 {[%clk 0:02:38]} 19...
Rad8 {[%clk 0:01:31.3]} 20. Rfd1 {[%clk 0:02:37.9]} 20... b6 {[%clk 0:01:10.5]}
21. Qd4 {[%clk 0:02:24.1]} 21... Qf6 {[%clk 0:01:08.3]} 22. Ng4 {[%clk
0:02:13.3]} 22... Qxd4 {[%clk 0:01:04.1]} 23. Rxd4 {[%clk 0:02:13.3]} 23... d5
{[%clk 0:00:57.2]} 24. Ne5 {[%clk 0:02:03.2]} 24... Rd6 {[%clk 0:00:52.2]} 25.
e4 {[%clk 0:01:58]} 25... Nf6 {[%clk 0:00:38.5]} 26. f3 {[%clk 0:01:57.4]} 26...
Kf8 {[%clk 0:00:19]} 27. h4 {[%clk 0:01:56.1]} 27... h5 {[%clk 0:00:18]} 28. Kg2
{[%clk 0:01:52.5]} 28... Ne8 {[%clk 0:00:10.9]} 29. cxd5 {[%clk 0:01:40.9]}
29... exd5 {[%clk 0:00:10.5]} 30. exd5 {[%clk 0:01:35.5]} 30... Nc7 {[%clk
0:00:10.3]} 31. Nc6 {[%clk 0:01:32.2]} 31... R8d7 {[%clk 0:00:10.3]} 32. Nxa7
{[%clk 0:01:29.8]} 32... Rxd5 {[%clk 0:00:09.5]} 33. Rxd5 {[%clk 0:01:28.9]}
33... Nxd5 {[%clk 0:00:09.5]} 34. Kf2 {[%clk 0:01:15.4]} 34... Rxa7 {[%clk
0:00:09.6]} 35. Rxd5 {[%clk 0:01:15.1]} 35... Rxa2+ {[%clk 0:00:10.3]} 36. Ke3
{[%clk 0:01:15.4]} 36... Rg2 {[%clk 0:00:08.9]} 37. Kf4 {[%clk 0:01:14.4]} 37...
Rc2 {[%clk 0:00:05]} 38. Rd6 {[%clk 0:01:12.4]} 38... b5 {[%clk 0:00:05.2]} 39.
Rd5 {[%clk 0:01:12.5]} 39... b4 {[%clk 0:00:04.8]} 40. Rd4 {[%clk 0:01:12.6]}
40... Rc5 {[%clk 0:00:02.8]} 41. Rxb4 {[%clk 0:01:11.8]} 41... Kg7 {[%clk
0:00:03]} 42. Re4 {[%clk 0:01:09.3]} 42... f6 {[%clk 0:00:02.6]} 43. b4 {[%clk
0:01:07.5]} 43... Rb5 {[%clk 0:00:01.2]} 44. Ke3 {[%clk 0:01:07.4]} 44... Kh6
{[%clk 0:00:01.6]} 45. Kd3 {[%clk 0:01:06.5]} 45... Rb6 {[%clk 0:00:02.1]} 46.
Kc4 {[%clk 0:01:06]} 46... g5 {[%clk 0:00:03]} 47. b5 {[%clk 0:01:05.3]} 47...
gxh4 {[%clk 0:00:02.1]} 48. gxh4 {[%clk 0:01:03.5]} 48... Kg6 {[%clk 0:00:03]}
49. Kc5 {[%clk 0:01:02.1]} 49... Rb8 {[%clk 0:00:03.5]} 50. b6 {[%clk
0:01:01.5]} 50... Kf5 {[%clk 0:00:03.5]} 51. Kc6 {[%clk 0:00:59.1]} 51... Rg8
{[%clk 0:00:03.9]} 52. b7 {[%clk 0:00:58.2]} 52... Kg6 {[%clk 0:00:04.2]} 53.
Kc7 {[%clk 0:00:57.1]} 53... f5 {[%clk 0:00:05.1]} 54. Rd4 {[%clk 0:00:53.2]}
54... Kf6 {[%clk 0:00:05.5]} 55. Rd8 {[%clk 0:00:47.3]} 55... Rxd8 {[%clk
0:00:05.1]} 56. Kxd8 {[%clk 0:00:46.5]} 56... f4 {[%clk 0:00:06]} 57. b8=Q
{[%clk 0:00:45.5]} 57... Kg7 {[%clk 0:00:03.9]} 58. Qd6 {[%clk 0:00:44.5]} 58...
Kh8 {[%clk 0:00:03.3]} 59. Ke7 {[%clk 0:00:43]} 59... Kg7 {[%clk 0:00:02.9]} 60.
Qf6+ {[%clk 0:00:41.7]} 60... Kg8 {[%clk 0:00:03.4]} 61. Qg5+ {[%clk 0:00:41.5]}
61... Kh7 {[%clk 0:00:02.7]} 62. Kf7 {[%clk 0:00:41.4]} 1-0

[Event "*** SCC Grand Prix: Titled Tuesday Blitz"]
[Site "Chess.com"]
[Date "2020.06.02"]
[Round "2"]
[White "seorobert1971"]
[Black "LileKoridze"]
[Result "1-0"]
[WhiteElo "2644"]
[BlackElo "2313"]
[TimeControl "180+1"]
[EndTime "10:18:21 PDT"]
[Termination "seorobert1971 won by resignation"]

1. e4 {[%clk 0:03:00.9]} 1... c5 {[%clk 0:02:59.8]} 2. Nf3 {[%clk 0:03:00.9]}
2... d6 {[%clk 0:03:00]} 3. Nc3 {[%clk 0:03:00.6]} 3... Nc6 {[%clk 0:02:59.4]}
4. Bb5 {[%clk 0:02:59.9]} 4... Bd7 {[%clk 0:02:59.2]} 5. O-O {[%clk 0:02:58.7]}
5... Nf6 {[%clk 0:02:59]} 6. Re1 {[%clk 0:02:58.7]} 6... g6 {[%clk 0:02:59]} 7.
d3 {[%clk 0:02:55.5]} 7... Bg7 {[%clk 0:02:58.7]} 8. h3 {[%clk 0:02:55.9]} 8...
O-O {[%clk 0:02:56.2]} 9. Be3 {[%clk 0:02:55.9]} 9... a6 {[%clk 0:02:48.5]} 10.
Bxc6 {[%clk 0:02:55.9]} 10... Bxc6 {[%clk 0:02:47.7]} 11. Qd2 {[%clk 0:02:56.5]}
11... Re8 {[%clk 0:02:45.9]} 12. Bh6 {[%clk 0:02:56.2]} 12... Bh8 {[%clk
0:02:45.2]} 13. Ne2 {[%clk 0:02:54.1]} 13... b5 {[%clk 0:02:42.9]} 14. Rad1
{[%clk 0:02:51.3]} 14... Nd7 {[%clk 0:02:38]} 15. c3 {[%clk 0:02:48.4]} 15... d5
{[%clk 0:02:20]} 16. Nf4 {[%clk 0:02:40.8]} 16... dxe4 {[%clk 0:02:17.7]} 17.
dxe4 {[%clk 0:02:40.7]} 17... Ne5 {[%clk 0:02:13.9]} 18. Qe2 {[%clk 0:02:31.2]}
18... Qc7 {[%clk 0:02:02.7]} 19. Nd5 {[%clk 0:02:29]} 19... Bxd5 {[%clk
0:01:58.1]} 20. Rxd5 {[%clk 0:02:23.9]} 20... Rad8 {[%clk 0:01:49.8]} 21. Red1
{[%clk 0:02:21.8]} 21... c4 {[%clk 0:01:36]} 22. Bf4 {[%clk 0:02:10]} 22...
Nxf3+ {[%clk 0:01:24.8]} 23. Qxf3 {[%clk 0:02:10.1]} 23... Qb6 {[%clk
0:01:21.2]} 24. e5 {[%clk 0:02:03.5]} 24... Bg7 {[%clk 0:01:11.1]} 25. a3 {[%clk
0:01:57.1]} 25... Rxd5 {[%clk 0:01:03.7]} 26. Qxd5 {[%clk 0:01:56.7]} 26... h6
{[%clk 0:00:30.1]} 27. Qd7 {[%clk 0:01:51.5]} 27... Kf8 {[%clk 0:00:28.6]} 28.
h4 {[%clk 0:01:42.1]} 28... Qc5 {[%clk 0:00:24.5]} 29. Rd5 {[%clk 0:01:36.9]}
29... Qb6 {[%clk 0:00:21.4]} 30. g3 {[%clk 0:01:32.9]} 30... Qe6 {[%clk
0:00:11.4]} 31. Qb7 {[%clk 0:01:21.7]} 31... Kg8 {[%clk 0:00:05.9]} 32. Kg2
{[%clk 0:01:14.7]} 32... Qf5 {[%clk 0:00:05.7]} 33. Rc5 {[%clk 0:01:02.3]} 33...
Qe6 {[%clk 0:00:04.2]} 34. Qc6 {[%clk 0:00:51.1]} 34... Qxc6+ {[%clk 0:00:04.1]}
35. Rxc6 {[%clk 0:00:52]} 35... Ra8 {[%clk 0:00:04.5]} 36. e6 {[%clk 0:00:50.8]}
36... fxe6 {[%clk 0:00:04.3]} 37. Rxe6 {[%clk 0:00:50.5]} 37... Kf7 {[%clk
0:00:05]} 38. Rc6 {[%clk 0:00:50.2]} 38... h5 {[%clk 0:00:03]} 39. Kf3 {[%clk
0:00:48.2]} 39... Bf6 {[%clk 0:00:03.5]} 40. Rb6 {[%clk 0:00:48]} 40... Ke8
{[%clk 0:00:03.6]} 41. Ke4 {[%clk 0:00:43.4]} 41... Kd7 {[%clk 0:00:04.1]} 42.
Be5 {[%clk 0:00:42]} 42... Bxe5 {[%clk 0:00:02.3]} 43. Kxe5 {[%clk 0:00:41.8]}
43... Rf8 {[%clk 0:00:02.1]} 44. f4 {[%clk 0:00:37.9]} 44... Rf5+ {[%clk
0:00:02.3]} 45. Kd4 {[%clk 0:00:37.1]} 45... Rf6 {[%clk 0:00:02.9]} 46. Rxf6
{[%clk 0:00:35]} 46... exf6 {[%clk 0:00:03.8]} 47. Kd5 {[%clk 0:00:33.2]} 47...
a5 {[%clk 0:00:03.6]} 48. Kc5 {[%clk 0:00:31]} 48... Ke6 {[%clk 0:00:04.2]} 49.
Kxb5 {[%clk 0:00:30.6]} 49... Kf5 {[%clk 0:00:05.1]} 50. Kxc4 {[%clk 0:00:29.8]}
50... Kg4 {[%clk 0:00:06]} 51. b4 {[%clk 0:00:30]} 51... Kxg3 {[%clk 0:00:06.9]}
52. bxa5 {[%clk 0:00:26.6]} 52... Kxf4 {[%clk 0:00:07.5]} 53. a6 {[%clk
0:00:26.5]} 53... Kg4 {[%clk 0:00:08]} 54. a7 {[%clk 0:00:26.4]} 54... f5 {[%clk
0:00:08.9]} 55. a8=Q {[%clk 0:00:26.5]} 55... f4 {[%clk 0:00:09.8]} 56. Qg2+
{[%clk 0:00:26.3]} 56... Kxh4 {[%clk 0:00:10.4]} 57. Qxg6 {[%clk 0:00:25.7]}
57... f3 {[%clk 0:00:10.9]} 58. Kd3 {[%clk 0:00:25.8]} 1-0

[Event "*** SCC Grand Prix: Titled Tuesday Blitz"]
[Site "Chess.com"]
[Date "2020.06.02"]
[Round "2"]
[White "Virgo15"]
[Black "Kopytkin"]
[Result "1-0"]
[WhiteElo "2738"]
[BlackElo "2322"]
[TimeControl "180+1"]
[EndTime "10:18:24 PDT"]
[Termination "Virgo15 won by resignation"]

1. d4 {[%clk 0:03:00]} 1... d5 {[%clk 0:02:56.3]} 2. Bf4 {[%clk 0:02:58.7]} 2...
c5 {[%clk 0:02:55.8]} 3. e3 {[%clk 0:02:58.6]} 3... cxd4 {[%clk 0:02:53.7]} 4.
exd4 {[%clk 0:02:58.7]} 4... Nc6 {[%clk 0:02:54.2]} 5. c3 {[%clk 0:02:58.6]}
5... Nf6 {[%clk 0:02:54.5]} 6. Nd2 {[%clk 0:02:58.7]} 6... a6 {[%clk 0:02:53.5]}
7. Ngf3 {[%clk 0:02:56]} 7... Bg4 {[%clk 0:02:53.1]} 8. Qa4 {[%clk 0:02:55.5]}
8... Bxf3 {[%clk 0:02:47.2]} 9. Nxf3 {[%clk 0:02:55.3]} 9... Rc8 {[%clk
0:02:44.4]} 10. Ne5 {[%clk 0:02:55]} 10... e6 {[%clk 0:02:43.9]} 11. Nxc6 {[%clk
0:02:45.3]} 11... Rxc6 {[%clk 0:02:40.7]} 12. Bxa6 {[%clk 0:02:45.7]} 12... Nd7
{[%clk 0:01:53.6]} 13. Bb5 {[%clk 0:02:38.8]} 13... Rb6 {[%clk 0:01:35]} 14. O-O
{[%clk 0:02:35.6]} 14... Bd6 {[%clk 0:01:35.1]} 15. Bg3 {[%clk 0:02:28.9]} 15...
Ke7 {[%clk 0:01:34.6]} 16. Bxd6+ {[%clk 0:02:20.5]} 16... Rxd6 {[%clk
0:01:33.8]} 17. f4 {[%clk 0:02:18.2]} 17... g6 {[%clk 0:01:30.7]} 18. Rae1
{[%clk 0:02:16.7]} 18... Kf8 {[%clk 0:01:24.5]} 19. Bxd7 {[%clk 0:02:07.1]}
19... Qxd7 {[%clk 0:01:23.9]} 20. Qb4 {[%clk 0:02:05.8]} 20... Kg7 {[%clk
0:01:22.3]} 21. Re5 {[%clk 0:01:59.5]} 21... h5 {[%clk 0:01:18.9]} 22. Rf3
{[%clk 0:01:55.9]} 22... Ra6 {[%clk 0:01:17.2]} 23. Qb3 {[%clk 0:01:55.5]} 23...
Qc6 {[%clk 0:01:10.6]} 24. a3 {[%clk 0:01:53.5]} 24... b5 {[%clk 0:01:09.2]} 25.
Qc2 {[%clk 0:01:53.4]} 25... Rc8 {[%clk 0:01:00.5]} 26. Qd2 {[%clk 0:01:53.1]}
26... Ra7 {[%clk 0:00:56]} 27. Rg3 {[%clk 0:01:52.5]} 27... Qd6 {[%clk
0:00:51.8]} 28. Rxh5 {[%clk 0:01:44]} 28... b4 {[%clk 0:00:44.3]} 29. f5 {[%clk
0:01:42.8]} 29... exf5 {[%clk 0:00:44]} 30. Qh6+ {[%clk 0:01:42.3]} 30... Kf6
{[%clk 0:00:44.2]} 31. Qg5+ {[%clk 0:01:36.7]} 31... Kg7 {[%clk 0:00:41.2]} 32.
Rgh3 {[%clk 0:01:33.6]} 32... Rg8 {[%clk 0:00:26.2]} 33. Rf3 {[%clk 0:01:08]}
33... Qe6 {[%clk 0:00:13.1]} 34. Qh6+ {[%clk 0:01:04.5]} 34... Kf6 {[%clk
0:00:13.4]} 35. Rhxf5+ {[%clk 0:00:59.4]} 35... Qxf5 {[%clk 0:00:13.7]} 36.
Rxf5+ {[%clk 0:00:59.9]} 36... Kxf5 {[%clk 0:00:14.2]} 37. axb4 {[%clk
0:00:56.8]} 37... Ra1+ {[%clk 0:00:12.6]} 38. Kf2 {[%clk 0:00:56.9]} 38... Re8
{[%clk 0:00:12.8]} 39. Qh3+ {[%clk 0:00:56.9]} 39... Kf6 {[%clk 0:00:12.3]} 40.
Qf3+ {[%clk 0:00:56.7]} 40... Kg7 {[%clk 0:00:11.5]} 41. Qxd5 {[%clk 0:00:56.8]}
41... Rae1 {[%clk 0:00:11.3]} 42. Qc4 {[%clk 0:00:55]} 42... Rb1 {[%clk
0:00:08.6]} 43. Qb3 {[%clk 0:00:48.1]} 43... Rbe1 {[%clk 0:00:08.2]} 44. Qc2
{[%clk 0:00:48.4]} 44... f5 {[%clk 0:00:07.7]} 45. b5 {[%clk 0:00:48.2]} 45...
Kf6 {[%clk 0:00:07]} 46. b6 {[%clk 0:00:48.4]} 46... g5 {[%clk 0:00:02.2]} 47.
b7 {[%clk 0:00:38.7]} 47... R1e7 {[%clk 0:00:03.1]} 48. Qb3 {[%clk 0:00:38.9]}
48... Rb8 {[%clk 0:00:03]} 49. Qb6+ {[%clk 0:00:39.3]} 49... Kf7 {[%clk
0:00:03.4]} 50. Qc5 {[%clk 0:00:39.4]} 50... Rexb7 {[%clk 0:00:03.1]} 51. Qxf5+
{[%clk 0:00:39.5]} 51... Ke8 {[%clk 0:00:03.7]} 52. Qe6+ {[%clk 0:00:38.3]}
52... Re7 {[%clk 0:00:03.6]} 53. Qg8+ {[%clk 0:00:38.4]} 53... Kd7 {[%clk
0:00:02.4]} 54. Qxb8 {[%clk 0:00:38.8]} 1-0

[Event "*** SCC Grand Prix: Titled Tuesday Blitz"]
[Site "Chess.com"]
[Date "2020.06.02"]
[Round "2"]
[White "NemtsevIgor"]
[Black "GMartin_Petrov"]
[Result "0-1"]
[WhiteElo "2294"]
[BlackElo "2561"]
[TimeControl "180+1"]
[EndTime "10:18:24 PDT"]
[Termination "GMartin_Petrov won by resignation"]

1. d4 {[%clk 0:03:00.9]} 1... Nf6 {[%clk 0:02:58.2]} 2. Bf4 {[%clk 0:03:00.3]}
2... e6 {[%clk 0:02:58.3]} 3. e3 {[%clk 0:03:00.2]} 3... d5 {[%clk 0:02:57.9]}
4. Nf3 {[%clk 0:02:59.7]} 4... Bd6 {[%clk 0:02:58.3]} 5. Nbd2 {[%clk 0:02:57.8]}
5... O-O {[%clk 0:02:56.4]} 6. Bd3 {[%clk 0:02:57.1]} 6... b6 {[%clk 0:02:54.8]}
7. Qe2 {[%clk 0:02:56.3]} 7... Bb7 {[%clk 0:02:40.9]} 8. Ne5 {[%clk 0:02:55.1]}
8... c5 {[%clk 0:02:40.3]} 9. c3 {[%clk 0:02:54.7]} 9... Nc6 {[%clk 0:02:38.1]}
10. Ndf3 {[%clk 0:02:49]} 10... Ne4 {[%clk 0:02:32.9]} 11. h4 {[%clk 0:02:39.2]}
11... Ne7 {[%clk 0:02:29.5]} 12. Ng5 {[%clk 0:02:34.2]} 12... h6 {[%clk
0:02:08.7]} 13. f3 {[%clk 0:02:26.2]} 13... Nf6 {[%clk 0:01:52.1]} 14. g4 {[%clk
0:02:14]} 14... a5 {[%clk 0:01:34.2]} 15. Ngxf7 {[%clk 0:02:04]} 15... Rxf7
{[%clk 0:01:33.3]} 16. Nxf7 {[%clk 0:02:04.7]} 16... Kxf7 {[%clk 0:01:32.5]} 17.
g5 {[%clk 0:02:05.6]} 17... Nh5 {[%clk 0:01:30.7]} 18. Bxd6 {[%clk 0:01:19.2]}
18... Qxd6 {[%clk 0:01:31.6]} 19. f4 {[%clk 0:01:19.6]} 19... Ng3 {[%clk
0:01:30.1]} 20. Qf3 {[%clk 0:01:16]} 20... Nxh1 {[%clk 0:01:27.7]} 21. Qxh1
{[%clk 0:01:16.7]} 21... Nf5 {[%clk 0:01:25.3]} 22. O-O-O {[%clk 0:01:11.7]}
22... Nxe3 {[%clk 0:01:19.4]} 23. Re1 {[%clk 0:00:56.8]} 23... cxd4 {[%clk
0:01:18.9]} 24. gxh6 {[%clk 0:00:53.7]} 24... Qxf4 {[%clk 0:01:14.2]} 25. Kb1
{[%clk 0:00:51.3]} 25... Qxh6 {[%clk 0:01:09.6]} 26. cxd4 {[%clk 0:00:48.4]}
26... Ba6 {[%clk 0:01:06.4]} 27. Qf3+ {[%clk 0:00:45.7]} 27... Ke7 {[%clk
0:00:52.6]} 28. Bxa6 {[%clk 0:00:43.7]} 28... Rxa6 {[%clk 0:00:50.4]} 29. Rxe3
{[%clk 0:00:43.7]} 29... Qg6+ {[%clk 0:00:45]} 30. Kc1 {[%clk 0:00:38.3]} 30...
Ra7 {[%clk 0:00:42.8]} 31. Rc3 {[%clk 0:00:38]} 31... Qf6 {[%clk 0:00:37.1]} 32.
Qg3 {[%clk 0:00:37.1]} 32... Rd7 {[%clk 0:00:34.2]} 33. Qg4 {[%clk 0:00:34.6]}
33... Qf1+ {[%clk 0:00:29.2]} 34. Kc2 {[%clk 0:00:33.9]} 34... Qf5+ {[%clk
0:00:27]} 35. Qxf5 {[%clk 0:00:31.7]} 35... exf5 {[%clk 0:00:27.9]} 36. Rg3
{[%clk 0:00:29.8]} 36... Kf6 {[%clk 0:00:27.1]} 37. h5 {[%clk 0:00:26.1]} 37...
b5 {[%clk 0:00:16.2]} 38. Rg6+ {[%clk 0:00:25.9]} 38... Kf7 {[%clk 0:00:16.1]}
39. Kd2 {[%clk 0:00:25.3]} 39... Rd8 {[%clk 0:00:14.1]} 40. Rb6 {[%clk
0:00:25.1]} 40... b4 {[%clk 0:00:12.4]} 41. Rb5 {[%clk 0:00:25.5]} 41... Rh8
{[%clk 0:00:11.8]} 42. Rxd5 {[%clk 0:00:24]} 42... Kf6 {[%clk 0:00:11.9]} 43.
Rxa5 {[%clk 0:00:24]} 43... Rxh5 {[%clk 0:00:11.8]} 44. Ra4 {[%clk 0:00:20.4]}
44... Rh2+ {[%clk 0:00:11.8]} 45. Kd3 {[%clk 0:00:20.3]} 45... Rxb2 {[%clk
0:00:10.8]} 46. Kc4 {[%clk 0:00:20.2]} 46... f4 {[%clk 0:00:10.6]} 47. Ra8
{[%clk 0:00:18.6]} 47... g5 {[%clk 0:00:08.9]} 48. Kd5 {[%clk 0:00:18.4]} 48...
g4 {[%clk 0:00:08]} 49. Rf8+ {[%clk 0:00:18.5]} 49... Kg5 {[%clk 0:00:08.4]} 50.
Ke5 {[%clk 0:00:18.6]} 50... f3 {[%clk 0:00:08.2]} 51. Rg8+ {[%clk 0:00:18.1]}
51... Kh5 {[%clk 0:00:07]} 52. Kf4 {[%clk 0:00:18.4]} 52... f2 {[%clk
0:00:06.7]} 53. Rg5+ {[%clk 0:00:18.1]} 53... Kh6 {[%clk 0:00:06.5]} 54. Kxg4
{[%clk 0:00:16.4]} 54... f1=Q {[%clk 0:00:05.9]} 0-1

[Event "*** SCC Grand Prix: Titled Tuesday Blitz"]
[Site "Chess.com"]
[Date "2020.06.02"]
[Round "2"]
[White "Sibelephant"]
[Black "Ziachess74"]
[Result "1-0"]
[WhiteElo "3163"]
[BlackElo "2596"]
[TimeControl "180+1"]
[EndTime "10:18:26 PDT"]
[Termination "Sibelephant won by resignation"]

1. c4 {[%clk 0:03:00.2]} 1... e6 {[%clk 0:02:53.4]} 2. Nc3 {[%clk 0:02:59.8]}
2... d5 {[%clk 0:02:53.3]} 3. d4 {[%clk 0:03:00.2]} 3... c6 {[%clk 0:02:45.2]}
4. e3 {[%clk 0:02:58.5]} 4... Nf6 {[%clk 0:02:42.3]} 5. Nf3 {[%clk 0:02:58.9]}
5... Nbd7 {[%clk 0:02:42.3]} 6. Be2 {[%clk 0:02:58.6]} 6... Bd6 {[%clk
0:02:35.5]} 7. O-O {[%clk 0:02:58.1]} 7... O-O {[%clk 0:02:33.2]} 8. b3 {[%clk
0:02:57.2]} 8... b6 {[%clk 0:02:31.6]} 9. Bb2 {[%clk 0:02:56.7]} 9... Bb7 {[%clk
0:02:31.8]} 10. Rc1 {[%clk 0:02:46.1]} 10... Qe7 {[%clk 0:02:24.9]} 11. cxd5
{[%clk 0:02:46.3]} 11... exd5 {[%clk 0:02:14.3]} 12. g3 {[%clk 0:02:45.7]} 12...
Rfd8 {[%clk 0:01:58.6]} 13. Re1 {[%clk 0:02:44.4]} 13... Rac8 {[%clk 0:01:57.3]}
14. Bf1 {[%clk 0:02:44.6]} 14... Ba3 {[%clk 0:01:54.5]} 15. Bxa3 {[%clk
0:02:41.3]} 15... Qxa3 {[%clk 0:01:55.4]} 16. Qc2 {[%clk 0:02:37.7]} 16... Qf8
{[%clk 0:01:47.4]} 17. Qb2 {[%clk 0:02:30.2]} 17... Ne4 {[%clk 0:01:38.6]} 18.
b4 {[%clk 0:02:14.1]} 18... Ndf6 {[%clk 0:01:28.6]} 19. Bh3 {[%clk 0:02:03.2]}
19... Rb8 {[%clk 0:01:25.9]} 20. Ne2 {[%clk 0:01:41.7]} 20... Bc8 {[%clk
0:01:09.4]} 21. Bg2 {[%clk 0:01:27.8]} 21... Bd7 {[%clk 0:01:06.4]} 22. Ne5
{[%clk 0:01:27]} 22... c5 {[%clk 0:01:00.3]} 23. bxc5 {[%clk 0:01:18.9]} 23...
bxc5 {[%clk 0:00:59.9]} 24. Qc2 {[%clk 0:01:09]} 24... c4 {[%clk 0:00:57.8]} 25.
Nxd7 {[%clk 0:00:53.1]} 25... Rxd7 {[%clk 0:00:57.1]} 26. Nf4 {[%clk 0:00:53.3]}
26... Qd6 {[%clk 0:00:48.5]} 27. h4 {[%clk 0:00:26.7]} 27... Rdb7 {[%clk
0:00:36.7]} 28. Rb1 {[%clk 0:00:26.8]} 28... h6 {[%clk 0:00:29.4]} 29. Rxb7
{[%clk 0:00:12.1]} 29... Rxb7 {[%clk 0:00:30.3]} 30. Rb1 {[%clk 0:00:12.6]}
30... Rxb1+ {[%clk 0:00:30.3]} 31. Qxb1 {[%clk 0:00:13.2]} 31... g5 {[%clk
0:00:31.1]} 32. hxg5 {[%clk 0:00:12.6]} 32... hxg5 {[%clk 0:00:30.5]} 33. Ne2
{[%clk 0:00:13.2]} 33... Qb6 {[%clk 0:00:28.1]} 34. Qxb6 {[%clk 0:00:08.6]}
34... axb6 {[%clk 0:00:27.9]} 35. f3 {[%clk 0:00:09]} 35... Nd6 {[%clk
0:00:25.9]} 36. Nc3 {[%clk 0:00:09.4]} 36... g4 {[%clk 0:00:22.7]} 37. fxg4
{[%clk 0:00:07.3]} 37... Nde4 {[%clk 0:00:18.1]} 38. Bxe4 {[%clk 0:00:03.3]}
38... Nxe4 {[%clk 0:00:16.3]} 39. Nxd5 {[%clk 0:00:03.3]} 39... c3 {[%clk
0:00:14.6]} 40. Nb4 {[%clk 0:00:03.5]} 40... Kg7 {[%clk 0:00:11.6]} 41. Kf1
{[%clk 0:00:03.9]} 41... Kg6 {[%clk 0:00:11.7]} 42. Ke2 {[%clk 0:00:04.3]} 42...
Kg5 {[%clk 0:00:11.7]} 43. Kd3 {[%clk 0:00:04.7]} 43... Nxg3 {[%clk 0:00:11.1]}
44. Nd5 {[%clk 0:00:05.1]} 44... b5 {[%clk 0:00:10.4]} 45. Nxc3 {[%clk 0:00:05]}
45... Kxg4 {[%clk 0:00:08.2]} 46. Nxb5 {[%clk 0:00:05.1]} 46... Kf3 {[%clk
0:00:07.6]} 47. d5 {[%clk 0:00:05.6]} 47... Nf5 {[%clk 0:00:07.2]} 48. Nd4+
{[%clk 0:00:05.8]} 48... Nxd4 {[%clk 0:00:06.8]} 49. Kxd4 {[%clk 0:00:06.3]} 1-0

[Event "*** SCC Grand Prix: Titled Tuesday Blitz"]
[Site "Chess.com"]
[Date "2020.06.02"]
[Round "2"]
[White "Gmedmundo"]
[Black "Harsha_Bharathakoti"]
[Result "0-1"]
[WhiteElo "2487"]
[BlackElo "2726"]
[TimeControl "180+1"]
[EndTime "10:18:26 PDT"]
[Termination "Harsha_Bharathakoti won on time"]

1. e4 {[%clk 0:03:00.9]} 1... c5 {[%clk 0:02:59.5]} 2. Nf3 {[%clk 0:02:59.7]}
2... Nc6 {[%clk 0:02:57.7]} 3. Bb5 {[%clk 0:02:58.9]} 3... g6 {[%clk 0:02:58]}
4. Bxc6 {[%clk 0:02:58.2]} 4... dxc6 {[%clk 0:02:58.8]} 5. d3 {[%clk 0:02:57.3]}
5... Bg7 {[%clk 0:02:58.9]} 6. h3 {[%clk 0:02:56.9]} 6... Nf6 {[%clk 0:02:57]}
7. Nc3 {[%clk 0:02:56.1]} 7... Nd7 {[%clk 0:02:56.1]} 8. Be3 {[%clk 0:02:46.3]}
8... e5 {[%clk 0:02:56.1]} 9. Qd2 {[%clk 0:02:44.9]} 9... h6 {[%clk 0:02:56.1]}
10. O-O {[%clk 0:02:38.9]} 10... b6 {[%clk 0:02:54.7]} 11. Nh2 {[%clk
0:02:37.7]} 11... Nf8 {[%clk 0:02:54.8]} 12. f4 {[%clk 0:02:36]} 12... exf4
{[%clk 0:02:55.7]} 13. Bxf4 {[%clk 0:02:35.3]} 13... Ne6 {[%clk 0:02:54.1]} 14.
Bg3 {[%clk 0:02:34]} 14... Qg5 {[%clk 0:02:47.7]} 15. Qe1 {[%clk 0:02:31.8]}
15... O-O {[%clk 0:02:36.1]} 16. e5 {[%clk 0:02:18.7]} 16... Nd4 {[%clk
0:02:13.5]} 17. Rc1 {[%clk 0:01:49.4]} 17... Re8 {[%clk 0:01:05.3]} 18. Nf3
{[%clk 0:01:22.7]} 18... Nxf3+ {[%clk 0:00:42]} 19. Rxf3 {[%clk 0:01:21.7]}
19... Bxe5 {[%clk 0:00:31.2]} 20. Ne4 {[%clk 0:01:00.8]} 20... Bd4+ {[%clk
0:00:31.4]} 21. Bf2 {[%clk 0:00:50.9]} 21... Rxe4 {[%clk 0:00:31.8]} 22. dxe4
{[%clk 0:00:47.6]} 22... Bxb2 {[%clk 0:00:32.4]} 23. Rd1 {[%clk 0:00:40.3]}
23... Be6 {[%clk 0:00:27.8]} 24. Bh4 {[%clk 0:00:34.9]} 24... Qh5 {[%clk
0:00:16.7]} 25. g4 {[%clk 0:00:33]} 25... Qe5 {[%clk 0:00:17.4]} 26. Bf6 {[%clk
0:00:31.2]} 26... Qxf6 {[%clk 0:00:18.1]} 27. Rxf6 {[%clk 0:00:30.4]} 27... Bxf6
{[%clk 0:00:19]} 28. e5 {[%clk 0:00:30.1]} 28... Be7 {[%clk 0:00:17.3]} 29. Qf2
{[%clk 0:00:27.4]} 29... b5 {[%clk 0:00:14.7]} 30. Rd6 {[%clk 0:00:25.5]} 30...
Bxd6 {[%clk 0:00:05.5]} 31. exd6 {[%clk 0:00:25]} 31... c4 {[%clk 0:00:04.9]}
32. a3 {[%clk 0:00:23.3]} 32... Kh7 {[%clk 0:00:04.5]} 33. c3 {[%clk 0:00:22.5]}
33... Rd8 {[%clk 0:00:04.4]} 34. Qd4 {[%clk 0:00:19.4]} 34... Bd5 {[%clk
0:00:03.6]} 35. Qf6 {[%clk 0:00:18.7]} 35... Rd7 {[%clk 0:00:04.3]} 36. Kf2
{[%clk 0:00:17.8]} 36... Be6 {[%clk 0:00:04.6]} 37. Qe5 {[%clk 0:00:14.9]} 37...
a5 {[%clk 0:00:05.3]} 38. Ke3 {[%clk 0:00:14.4]} 38... Bd5 {[%clk 0:00:02.6]}
39. Kd4 {[%clk 0:00:13.2]} 39... Be6 {[%clk 0:00:02.4]} 40. Kc5 {[%clk
0:00:12.5]} 40... Bd5 {[%clk 0:00:03.1]} 41. h4 {[%clk 0:00:11.3]} 41... Be6
{[%clk 0:00:02.7]} 42. g5 {[%clk 0:00:10.3]} 42... hxg5 {[%clk 0:00:03.6]} 43.
hxg5 {[%clk 0:00:09.8]} 43... Kg8 {[%clk 0:00:04.3]} 44. Kb6 {[%clk 0:00:09.4]}
44... b4 {[%clk 0:00:04.1]} 45. cxb4 {[%clk 0:00:08.2]} 45... axb4 {[%clk
0:00:05]} 46. axb4 {[%clk 0:00:07.8]} 46... c3 {[%clk 0:00:05.9]} 47. Kxc6
{[%clk 0:00:03.7]} 47... c2 {[%clk 0:00:05.5]} 48. Qc5 {[%clk 0:00:02.2]} 48...
Rd8 {[%clk 0:00:02.4]} 0-1